{"text_format":"1","workbook":"xlsx","n_sheets":2,"sheets":["نموذج ادخال البيانات","تقرير الطالب"],"not_rendered":{"charts":0,"images":3,"macros":1,"external_links":0,"defined_names":2,"comments":0,"pivot_tables":0},"unopened":[],"bounds":{"document_bytes":16777216,"sheet_cells":100000,"rows_first":2000,"rows_last":500,"rows_between":2000,"halvings":0,"cell_chars":16384,"cell_head_chars":4096},"cells_cut":0,"cells_raw":0,"read":"whole","date_system":"1900"}

{"sheet":"نموذج ادخال البيانات","index":0,"n_rows":27,"n_cols":12,"rows_kept":27,"cut":false,"hidden":false,"merged":[[0,0,5,1],[0,2,1,11],[4,6,4,7],[5,6,5,7],[4,8,4,9],[5,8,5,9],[2,2,3,3],[4,2,5,3],[2,4,3,9],[4,4,4,5],[5,4,5,5]]}
[null,null,"نموذج ادخال بيانات التقرير الشهري للطالب"]
[]
[null,null,"منتدى السمو الاجتماعي",null,"تاريخ التقرير"]
[]
[null,null,"حلقات الهدى والنور",null,"اليوم",null,"الشهر",null,"السنة"]
[null,null,null,null,{"$f":"DAY(TODAY())","v":27},null,{"$f":"MONTH(TODAY())","v":8},null,{"$f":"YEAR(TODAY())","v":2021}]
["م","اسم الطالب","اسم الحلقة","المستوى","المرحلة الدراسية","عدد أجزاء الحفظ","مقدار الحفظ بالصفحة","مقدار المراجعة بالأجزاء","عدد أيام الغياب بعذر","عدد أيام الغياب بغير عذر","درجة الاختبار","التقييم الشهري"]
[1,"عبداللطيف مامان بهاري","حلقة أبو بكر الصديق رضي الله عنه",12,12,12,12,12,1,1,21,"ممتاز"]
[2,"عبدالرحمن محمد سيد","حلقة أبو بكر الصديق رضي الله عنه",null,null,21,21,21,1,1,21,"ممتاز"]
[3,"عبدالرحمن محمد سيد","حلقة أبو بكر الصديق رضي الله عنه",null,null,21,21,21,1,1,21,"ممتاز"]
[4,"اسماعيل علي صالح","حلقة أبو بكر الصديق رضي الله عنه",null,null,21,21,21,1,1,32,"ممتاز"]
[5,"سليمان أمادو هارون","حلقة عثمان بن عفان رضي الله عنه",null,null,32,32,32,1,1,21,"ممتاز"]
[6,"حامد بتاشو جمعة","حلقة عثمان بن عفان رضي الله عنه",null,null,21,21,21,1,1,21,"ممتاز"]
[7,"فارس عمر صديق","حلقة عثمان بن عفان رضي الله عنه",null,null,32,32,12,1,1,32,"ممتاز"]
[8,"ماهر محمود مولوي","حلقة علي بن أبي طالب رضي الله عنه",null,null,32,32,32,1,1,32,"ممتاز"]
[9,"وسام أحمد الشهري","حلقة علي بن أبي طالب رضي الله عنه",null,null,32,32,32,1,1,32,"ممتاز"]
[10,"ناصر محمد نور","حلفة فهد بن بريك الروفي ووالديه رحمهم الله",null,null,32,32,32,1,1,32,"ممتاز"]
[11,"وسيم أحمد الشهري","حلفة فهد بن بريك الروفي ووالديه رحمهم الله",null,null,32,32,32,1,1,32,"ممتاز"]
[12]
[13]
[14]
[15]
[16]
[17]
[18]
[19]
[20]

{"sheet":"تقرير الطالب","index":1,"n_rows":27,"n_cols":13,"rows_kept":27,"cut":false,"hidden":false,"merged":[[0,0,10,4],[11,1,14,1],[16,1,22,1]]}
[]
[]
[]
[null,null,null,null,null,null,null,null,null,null,null,null,{"$f":"IFERROR(INDEX(الجدول1[اسم الطالب],MATCH(0,INDEX(COUNTIF($M$3:M3,الجدول1[اسم الطالب]),),0)),\"\")","v":"عبداللطيف مامان بهاري"}]
[null,null,null,null,null,null,null,null,null,null,null,null,{"$f":"IFERROR(INDEX(الجدول1[اسم الطالب],MATCH(0,INDEX(COUNTIF($M$3:M4,الجدول1[اسم الطالب]),),0)),\"\")","v":"عبدالرحمن محمد سيد"}]
[null,null,null,null,null,null,null,null,null,null,null,null,{"$f":"IFERROR(INDEX(الجدول1[اسم الطالب],MATCH(0,INDEX(COUNTIF($M$3:M5,الجدول1[اسم الطالب]),),0)),\"\")","v":"اسماعيل علي صالح"}]
[null,null,null,null,null,null,null,null,null,null,null,null,{"$f":"IFERROR(INDEX(الجدول1[اسم الطالب],MATCH(0,INDEX(COUNTIF($M$3:M6,الجدول1[اسم الطالب]),),0)),\"\")","v":"سليمان أمادو هارون"}]
[null,null,null,null,null,null,null,null,null,null,null,null,{"$f":"IFERROR(INDEX(الجدول1[اسم الطالب],MATCH(0,INDEX(COUNTIF($M$3:M7,الجدول1[اسم الطالب]),),0)),\"\")","v":"حامد بتاشو جمعة"}]
[null,null,null,null,null,null,null,null,null,null,null,null,{"$f":"IFERROR(INDEX(الجدول1[اسم الطالب],MATCH(0,INDEX(COUNTIF($M$3:M8,الجدول1[اسم الطالب]),),0)),\"\")","v":"فارس عمر صديق"}]
[null,null,null,null,null,null,null,null,null,null,null,null,{"$f":"IFERROR(INDEX(الجدول1[اسم الطالب],MATCH(0,INDEX(COUNTIF($M$3:M9,الجدول1[اسم الطالب]),),0)),\"\")","v":"ماهر محمود مولوي"}]
[null,null,null,null,null,null,null,null,null,null,null,null,{"$f":"IFERROR(INDEX(الجدول1[اسم الطالب],MATCH(0,INDEX(COUNTIF($M$3:M10,الجدول1[اسم الطالب]),),0)),\"\")","v":"وسام أحمد الشهري"}]
[null,"المعلومات الشخصية","اسم الطالب","عبداللطيف مامان بهاري",null,null,null,null,null,null,null,null,{"$f":"IFERROR(INDEX(الجدول1[اسم الطالب],MATCH(0,INDEX(COUNTIF($M$3:M11,الجدول1[اسم الطالب]),),0)),\"\")","v":"ناصر محمد نور"}]
[null,null,"اسم الحلقة",{"$f":"INDEX('نموذج ادخال البيانات'!$B$7:$L$27,MATCH(D$12,'نموذج ادخال البيانات'!$B$7:$B$27,0),MATCH($C13,'نموذج ادخال البيانات'!$B$7:$L$7,0))","v":"حلقة أبو بكر الصديق رضي الله عنه"}]
[null,null,"المستوى",{"$f":"INDEX('نموذج ادخال البيانات'!$B$7:$L$27,MATCH(D$12,'نموذج ادخال البيانات'!$B$7:$B$27,0),MATCH($C14,'نموذج ادخال البيانات'!$B$7:$L$7,0))","v":12}]
[null,null,"المرحلة الدراسية",{"$f":"INDEX('نموذج ادخال البيانات'!$B$7:$L$27,MATCH(D$12,'نموذج ادخال البيانات'!$B$7:$B$27,0),MATCH($C15,'نموذج ادخال البيانات'!$B$7:$L$7,0))","v":12},null,null,null,null,null,null,null,null,{"$f":"IFERROR(INDEX(الجدول1[اسم الطالب],MATCH(0,INDEX(COUNTIF($M$3:M12,الجدول1[اسم الطالب]),),0)),\"\")","v":"وسيم أحمد الشهري"}]
[null,null,null,null,null,null,null,null,null,null,null,null,{"$f":"IFERROR(INDEX(الجدول1[اسم الطالب],MATCH(0,INDEX(COUNTIF($M$3:M15,الجدول1[اسم الطالب]),),0)),\"\")","v":0}]
[null,"أداء الطالب في الحلقة","عدد أجزاء الحفظ",{"$f":"INDEX('نموذج ادخال البيانات'!$B$7:$L$27,MATCH(D$12,'نموذج ادخال البيانات'!$B$7:$B$27,0),MATCH($C17,'نموذج ادخال البيانات'!$B$7:$L$7,0))","v":12},null,null,null,null,null,null,null,null,{"$f":"IFERROR(INDEX(الجدول1[اسم الطالب],MATCH(0,INDEX(COUNTIF($M$3:M16,الجدول1[اسم الطالب]),),0)),\"\")","v":""}]
[null,null,"مقدار الحفظ بالصفحة",{"$f":"INDEX('نموذج ادخال البيانات'!$B$7:$L$27,MATCH(D$12,'نموذج ادخال البيانات'!$B$7:$B$27,0),MATCH($C18,'نموذج ادخال البيانات'!$B$7:$L$7,0))","v":12},null,null,null,null,null,null,null,null,{"$f":"IFERROR(INDEX(الجدول1[اسم الطالب],MATCH(0,INDEX(COUNTIF($M$3:M17,الجدول1[اسم الطالب]),),0)),\"\")","v":""}]
[null,null,"مقدار المراجعة بالأجزاء",{"$f":"INDEX('نموذج ادخال البيانات'!$B$7:$L$27,MATCH(D$12,'نموذج ادخال البيانات'!$B$7:$B$27,0),MATCH($C19,'نموذج ادخال البيانات'!$B$7:$L$7,0))","v":12},null,null,null,null,null,null,null,null,{"$f":"IFERROR(INDEX(الجدول1[اسم الطالب],MATCH(0,INDEX(COUNTIF($M$3:M18,الجدول1[اسم الطالب]),),0)),\"\")","v":""}]
[null,null,"عدد أيام الغياب بعذر",{"$f":"INDEX('نموذج ادخال البيانات'!$B$7:$L$27,MATCH(D$12,'نموذج ادخال البيانات'!$B$7:$B$27,0),MATCH($C20,'نموذج ادخال البيانات'!$B$7:$L$7,0))","v":1}]
[null,null,"عدد أيام الغياب بغير عذر",{"$f":"INDEX('نموذج ادخال البيانات'!$B$7:$L$27,MATCH(D$12,'نموذج ادخال البيانات'!$B$7:$B$27,0),MATCH($C21,'نموذج ادخال البيانات'!$B$7:$L$7,0))","v":1},null,null,null,null,null,null,null,null,{"$f":"IFERROR(INDEX(الجدول1[اسم الطالب],MATCH(0,INDEX(COUNTIF($M$3:M19,الجدول1[اسم الطالب]),),0)),\"\")","v":""}]
[null,null,"درجة الاختبار",{"$f":"INDEX('نموذج ادخال البيانات'!$B$7:$L$27,MATCH(D$12,'نموذج ادخال البيانات'!$B$7:$B$27,0),MATCH($C22,'نموذج ادخال البيانات'!$B$7:$L$7,0))","v":21},null,null,null,null,null,null,null,null,{"$f":"IFERROR(INDEX(الجدول1[اسم الطالب],MATCH(0,INDEX(COUNTIF($M$3:M21,الجدول1[اسم الطالب]),),0)),\"\")","v":""}]
[null,null,"التقييم الشهري",{"$f":"INDEX('نموذج ادخال البيانات'!$B$7:$L$27,MATCH(D$12,'نموذج ادخال البيانات'!$B$7:$B$27,0),MATCH($C23,'نموذج ادخال البيانات'!$B$7:$L$7,0))","v":"ممتاز"},null,null,null,null,null,null,null,null,{"$f":"IFERROR(INDEX(الجدول1[اسم الطالب],MATCH(0,INDEX(COUNTIF($M$3:M22,الجدول1[اسم الطالب]),),0)),\"\")","v":""}]
[]
[]
[]
[null,null,"تاريخ الطباعة",{"$f":"TODAY()","v":"2021-08-27"}]